bitfinex/quotes_ETHUSD_20241024
["timestamp","ask_amount","ask_price","bid_price","bid_amount"]
[1729777133008,3.95386,2529.2,2528.9,0.06473327]
[1729777133636,3.95398,2529.1,2528.9,0.06473327]
[1729777133793,4.349528,2529.0,2528.9,0.06473327]
[1729777133992,4.349528,2529.0,2528.4,0.8284]
[1729777134197,3.95438,2528.9,2528.4,0.8284]
[1729777134419,3.95447,2528.8,2528.5,0.06526452]
[1729777134917,3.9541,2529.1,2528.5,0.06526452]
[1729777135138,7.9082,2529.1,2528.6,3.95467]
[1729777135440,3.95432,2528.9,2528.7,0.06512947]
[1729777135593,3.95444,2528.8,2528.7,0.06512947]
[1729777135794,3.95484,2528.6,2528.3,4.07]
[1729777136008,3.95498,2528.5,2528.4,0.06550982]
[1729777136598,3.95498,2528.5,2528.0,10.0]
[1729777136941,3.95532,2528.3,2528.1,0.06588663]
[1729777137234,3.95538,2528.2,2528.1,0.06588663]
[1729777137435,3.95531,2528.3,2528.1,0.06588663]
[1729777138023,3.95538,2528.2,2528.1,0.06588663]
[1729777138737,3.95531,2528.3,2528.1,0.06588663]
[1729777138909,3.95514,2528.4,2528.1,0.06588663]
[1729777139116,3.95472,2528.7,2528.1,1.15158839]
[1729777139313,3.95492,2528.5,2528.1,1.07247529]
[1729777139505,3.95507,2528.4,2528.1,0.06588663]
[1729777140148,3.95526,2528.3,2528.1,0.06588663]
[1729777140301,4.77156,2528.8,2528.1,0.06588663]
[1729777140495,3.95529,2528.3,2528.1,0.06588663]
[1729777141397,3.95502,2528.5,2528.1,0.06588663]
[1729777141598,3.95483,2528.6,2528.2,3.95537]
[1729777142037,3.9547,2528.7,2528.3,4.02103686]
[1729777142239,4.7823,2529.1,2528.4,0.83510029]
[1729777142444,3.9541,2529.1,2528.6,3.95475]
[1729777142742,3.95379,2529.3,2528.7,0.06562299]
[1729777143040,3.95398,2529.1,2528.7,0.06562299]
[1729777143344,3.95404,2529.1,2528.6,3.95463]
[1729777143546,3.95366,2529.3,2528.8,0.06549744]
[1729777143712,3.95373,2529.3,2528.8,3.95436]
[1729777143914,3.95344,2529.5,2529.0,0.7802]
[1729777144241,3.95344,2529.5,2529.1,0.0650301]
[1729777144449,3.95319,2529.6,2529.1,0.0650301]
[1729777144655,3.95313,2529.7,2529.1,4.5066918]
[1729777144807,3.95311,2529.7,2529.2,4.50369]
[1729777145141,3.95311,2529.7,2529.3,0.06468474]
[1729777145501,3.95311,2529.7,2529.2,4.50369]
[1729777145729,3.95289,2529.8,2529.3,4.01824404]
[1729777145914,3.95289,2529.8,2529.4,3.95347]
[1729777146247,3.95305,2529.7,2529.5,0.06434307]
[1729777146418,3.95305,2529.7,2529.3,0.90888318]
[1729777146619,3.95305,2529.7,2529.4,0.06446855]
[1729777146807,3.95335,2529.5,2529.4,0.06446855]
[1729777147241,3.95335,2529.5,2529.1,3.0]
[1729777147447,3.95335,2529.5,2529.1,3.773431]
[1729777147613,3.95335,2529.5,2529.2,0.06461436]
[1729777148816,3.95335,2529.5,2529.0,4.73423]
[1729777149030,3.95335,2529.5,2529.1,0.06473987]
[1729777150536,3.95283,2529.9,2529.3,3.95365]
[1729777150718,0.7606,2530.1,2529.5,0.796]
[1729777150919,3.9531,2529.7,2529.5,0.796]
[1729777151148,3.9531,2529.7,2529.6,0.0641378]
[1729777151705,3.95268,2530.0,2529.6,0.0641378]
[1729777151906,3.95227,2530.2,2529.6,4.57763431]
[1729777152154,3.9525,2530.1,2529.6,0.62453431]
[1729777152330,4.70864,2530.4,2529.7,0.55]
[1729777152644,3.95217,2530.3,2529.7,4.50293]
[1729777152966,3.95226,2530.2,2529.8,0.06335721]
[1729777153102,3.95207,2530.4,2529.8,4.01619721]
[1729777153307,3.95207,2530.4,2529.9,0.8124]
[1729777153507,3.9521,2530.3,2530.0,0.06310633]
[1729777153938,3.95207,2530.4,2530.0,0.06310633]
[1729777154244,3.95203,2530.4,2530.0,0.06310633]
[1729777154555,3.9518,2530.5,2530.0,0.06310633]
[1729777154712,3.9518,2530.5,2530.0,0.94119196]
[1729777154914,3.9518,2530.5,2530.0,1.02023703]
[1729777155216,3.9518,2530.5,2530.0,0.94119196]
[1729777155430,3.9518,2530.5,2530.0,4.01562633]
[1729777155808,4.71418,2530.7,2530.2,0.55]
[1729777155809,3.95158,2530.7,2530.2,0.55]
[1729777156017,3.95158,2530.7,2530.3,0.06273009]
[1729777156216,3.95158,2530.7,2530.2,0.55]
[1729777156533,3.95156,2530.7,2530.3,0.06273009]
[1729777156728,3.95182,2530.5,2530.3,0.06273009]
[1729777156927,3.95182,2530.5,2530.1,0.55]
[1729777157145,3.95182,2530.5,2530.4,0.0626047]
[1729777157660,3.95182,2530.5,2530.1,0.55]
[1729777157952,3.95182,2530.5,2530.2,0.06285549]
[1729777158659,3.95174,2530.6,2530.2,0.06285549]
[1729777159018,3.9518,2530.5,2530.2,0.06285549]
[1729777161456,7.90372,2530.5,2530.2,0.06285549]
[1729777161661,3.95195,2530.4,2530.0,0.55]
[1729777161953,3.9518,2530.5,2530.0,0.55]
[1729777161954,3.95179,2530.5,2530.1,0.06298091]
[1729777162926,7.90367,2530.5,2530.1,0.06298091]
[1729777163567,3.95195,2530.4,2530.1,0.06298091]
[1729777164063,3.95179,2530.5,2530.1,0.06298091]
[1729777164464,3.9516,2530.7,2530.1,0.06298091]
[1729777164465,3.95164,2530.6,2530.1,0.06298091]
[1729777164803,3.951,2531.0,2530.4,3.95187]
[1729777164963,3.95088,2531.1,2530.5,3.95167]
[1729777165274,0.798,2531.7,2530.7,0.8324]
[1729777165429,0.798,2531.7,2530.8,0.69092622]
[1729777165430,3.95045,2531.4,2530.8,0.69092622]
[1729777165632,3.95045,2531.4,2530.9,3.95115]
[1729777165868,3.95045,2531.4,2531.0,0.06165678]
[1729777166169,3.95007,2531.6,2531.0,0.06165678]
[1729777166472,3.95076,2531.2,2530.8,3.55]
[1729777166671,3.95048,2531.4,2530.8,3.55]
[1729777166672,3.95054,2531.3,2530.8,3.55]
[1729777166876,3.95054,2531.3,2530.9,0.06178211]
[1729777167175,3.95077,2531.2,2530.9,0.06178211]
[1729777167530,3.95039,2531.4,2530.9,0.06178211]
[1729777168073,3.95053,2531.3,2530.9,0.06178211]
[1729777168670,3.95061,2531.3,2530.9,0.06178211]
[1729777169239,3.95071,2531.2,2530.9,0.06178211]
[1729777169438,3.95091,2531.1,2530.9,0.06178211]
[1729777169637,3.95091,2531.1,2530.7,0.8324]
[1729777169878,4.740832,2531.2,2530.8,0.06190746]
[1729777170039,4.740832,2531.2,2530.7,0.8324]
[1729777170239,3.9507,2531.2,2530.8,0.06190746]
[1729777170574,3.9507,2531.2,2530.7,0.8324]
[1729777170575,3.95087,2531.1,2530.7,0.8324]
[1729777170781,3.95087,2531.1,2530.9,0.06178211]
[1729777170980,3.95085,2531.1,2530.9,0.06178211]
[1729777171147,3.95074,2531.2,2530.7,0.8324]
[1729777171352,4.740879,2531.2,2531.0,0.06165678]
[1729777171535,3.95074,2531.2,2530.7,0.8324]
[1729777171734,3.95074,2531.2,2531.1,0.06153145]
[1729777172099,3.95074,2531.2,2531.1,0.05940931]
[1729777172577,3.95074,2531.2,2530.7,0.8324]
[1729777172879,3.95071,2531.2,2530.7,0.8324]
[1729777174262,3.95065,2531.3,2530.8,3.95131]
[1729777174563,0.7808,2532.0,2531.2,3.95068]
[1729777174772,3.94992,2531.7,2531.2,3.95068]
[1729777174946,3.95007,2531.6,2531.1,0.07900774]
[1729777175141,3.95031,2531.5,2531.0,1.3021]
[1729777175554,3.95051,2531.4,2531.0,0.7521]
[1729777175955,3.95047,2531.4,2531.0,0.7521]
[1729777176152,3.95056,2531.3,2531.0,0.7521]
[1729777176384,3.95047,2531.4,2531.0,0.7521]
[1729777176560,3.95062,2531.3,2531.0,0.7521]
[1729777176742,4.740278,2531.5,2531.0,0.7521]
[1729777176948,3.95024,2531.5,2531.0,0.7521]
[1729777177190,3.95024,2531.5,2531.1,0.05869896]
[1729777177893,3.95037,2531.5,2531.1,0.05869896]
[1729777178193,3.95045,2531.4,2531.1,0.05869896]
[1729777178491,3.95024,2531.5,2531.1,0.05869896]
[1729777178648,3.95039,2531.4,2531.1,0.05869896]
[1729777179252,3.95055,2531.3,2531.1,0.05869896]
[1729777179484,3.95054,2531.3,2531.1,0.05869896]
[1729777179892,3.95036,2531.5,2531.1,0.05869896]
[1729777179893,3.95041,2531.4,2531.1,0.05869896]
[1729777180188,3.95025,2531.5,2531.1,0.05869896]
[1729777180780,7.90058,2531.5,2531.1,0.05869896]
[1729777181060,3.95046,2531.4,2531.1,0.05869896]
[1729777181391,3.95061,2531.3,2531.1,0.05869896]
[1729777182090,3.95069,2531.2,2531.1,0.05869896]
[1729777182291,3.95061,2531.3,2530.8,0.8084]
[1729777182502,3.95061,2531.3,2530.9,0.05892788]
[1729777183390,3.95071,2531.2,2530.9,0.05892788]
[1729777183604,0.824,2531.5,2530.9,0.05892788]
[1729777183753,3.9506,2531.3,2530.9,0.05892788]
[1729777184156,3.95079,2531.2,2530.9,0.05892788]
[1729777184572,3.9506,2531.3,2530.9,0.05892788]
[1729777184760,7.90122,2531.3,2530.9,0.05892788]
[1729777184956,3.95082,2531.2,2530.9,0.05892788]
[1729777185660,3.95056,2531.3,2530.9,0.05892788]
[1729777187193,3.95071,2531.2,2530.9,0.05892788]
[1729777187997,3.95056,2531.3,2530.9,0.05892788]
[1729777189157,3.95075,2531.2,2530.9,0.05892788]
[1729777189358,4.428016,2531.3,2530.9,0.05892788]
[1729777190094,7.90121,2531.3,2530.9,0.05892788]
[1729777190283,3.95076,2531.2,2530.9,0.05892788]
[1729777190786,3.95056,2531.3,2530.9,0.05892788]
[1729777191314,3.95097,2531.1,2530.9,0.05892788]
[1729777191518,4.346097,2531.0,2530.9,0.05892788]
[1729777191705,4.346097,2531.0,2530.5,7.72869]
[1729777192024,3.95118,2530.9,2530.6,0.05924961]
[1729777192192,3.95136,2530.8,2530.6,0.05924961]
[1729777192514,3.95136,2530.8,2530.4,4.0343818]
[1729777192718,3.95136,2530.8,2530.5,0.05946193]
[1729777193219,3.95153,2530.7,2530.5,0.05946193]
[1729777193660,3.95163,2530.6,2530.5,0.05946193]
[1729777194279,3.95163,2530.7,2530.1,5.18413886]
[1729777194511,3.95163,2530.7,2530.2,0.05989608]
[1729777194892,3.95163,2530.7,2530.2,4.01213608]
[1729777195083,3.95163,2530.7,2530.2,0.05989608]
[1729777195415,3.9516,2530.7,2530.2,0.05989608]
[1729777195984,3.95088,2531.1,2530.5,4.5017]
[1729777195985,3.95095,2531.1,2530.5,4.5017]
[1729777196185,3.95046,2531.4,2530.9,4.77596]
[1729777196615,3.95046,2531.4,2531.0,0.05916487]
[1729777197220,3.95054,2531.3,2531.0,0.05916487]
[1729777197794,0.7818,2531.7,2531.0,0.54268536]
[1729777198000,3.94914,2532.2,2531.7,3.94984]
[1729777198200,3.94879,2532.5,2531.8,3.94967]
[1729777198418,3.94879,2532.5,2531.8,4.0866696]
[1729777198645,3.94904,2532.3,2531.9,1.3544]
[1729777198803,3.94891,2532.4,2531.9,1.3544]
[1729777198999,3.94891,2532.4,2532.0,0.05757154]
[1729777199433,3.94906,2532.3,2532.0,0.05757154]
[1729777199803,3.94884,2532.4,2532.0,0.05757154]
[1729777199998,0.7818,2532.6,2532.0,0.05757154]
[1729777199999,3.94866,2532.5,2532.0,0.05757154]
[1729777200212,0.7574,2533.2,2532.2,0.55]
[1729777200521,3.94797,2533.0,2532.6,2.9238091]
[1729777200709,3.94819,2532.8,2532.7,0.05648157]
[1729777201058,3.94837,2532.7,2532.5,0.8032]
[1729777201275,3.94819,2532.8,2532.7,0.05647795]
[1729777201450,3.94835,2532.7,2532.6,0.05660311]
[1729777201656,3.94864,2532.6,2532.2,1.3532]
[1729777202387,3.94814,2532.9,2532.3,0.07897525]
[1729777202680,3.94823,2532.8,2532.3,0.07897525]
[1729777202838,3.94781,2533.1,2532.6,0.55]
[1729777203042,7.89566,2533.1,2532.6,0.55]
[1729777203239,3.94781,2533.1,2532.5,0.7953]
[1729777203455,3.94792,2533.0,2532.5,1.16721091]
[1729777204471,3.94781,2533.1,2532.5,1.16721091]
[1729777204668,3.94751,2533.3,2532.6,0.55]
[1729777204880,3.94769,2533.2,2532.6,0.62896402]
[1729777205033,3.94769,2533.2,2532.7,0.7853]
[1729777205569,3.94751,2533.3,2532.7,0.7853]
[1729777205782,3.94751,2533.3,2532.7,4.73363]
[1729777205931,3.94751,2533.3,2532.7,0.86425763]
[1729777206378,3.9477,2533.2,2532.7,0.86425763]
[1729777206530,3.94866,2532.5,2531.8,5.18140886]
[1729777206735,7.89659,2532.8,2532.1,3.94921]
[1729777207038,4.737909,2532.8,2532.2,0.8176]
[1729777207253,3.94825,2532.8,2532.2,0.87184341]
[1729777207770,3.948,2533.0,2532.2,0.87184341]
[1729777207974,3.94804,2532.9,2532.3,0.55]
[1729777208270,3.948,2533.0,2532.5,0.794]
[1729777208674,3.948,2533.0,2532.6,0.05381486]
[1729777209250,7.89538,2533.2,2532.6,0.5413737]
[1729777209452,0.394751,2533.3,2532.8,0.8212]
[1729777209453,3.94742,2533.3,2532.8,0.8212]
[1729777209664,3.94758,2533.2,2532.9,0.05342856]
[1729777210982,3.94775,2533.1,2532.9,0.05342856]
[1729777211479,7.89523,2533.2,2532.9,0.05342856]
[1729777211647,3.94758,2533.2,2532.9,0.05342856]
[1729777211841,3.94775,2533.1,2532.9,0.05342856]
[1729777212380,7.89563,2533.1,2532.9,0.05342856]
[1729777212598,3.94775,2533.1,2532.9,0.05342856]
[1729777212751,3.94788,2533.0,2532.9,0.05342856]
[1729777212956,5.502071,2533.1,2532.6,0.55]
[1729777213192,3.94806,2532.9,2532.6,0.55]
[1729777213395,5.502071,2533.1,2532.6,0.55]
[1729777213579,3.94775,2533.1,2532.6,0.55]
[1729777213785,3.94788,2533.0,2532.6,0.55]
[1729777214396,3.94775,2533.1,2532.6,0.55]
[1729777214567,3.94765,2533.2,2532.6,0.99243634]
[1729777214903,3.9477,2533.2,2532.6,0.99243634]
[1729777215192,3.94744,2533.3,2532.8,0.55]
[1729777215516,3.94726,2533.4,2532.8,4.5770584]
[1729777215661,3.94726,2533.4,2532.9,0.53871584]
[1729777216286,4.71606,2533.8,2532.9,0.53871584]
[1729777216287,3.94752,2533.3,2532.9,0.53871584]
[1729777216671,3.94752,2533.3,2532.8,3.55]
[1729777217001,3.6932091,2533.8,2532.7,0.8101]
[1729777217002,3.94782,2533.1,2532.7,0.8101]
[1729777217156,3.94781,2533.1,2532.7,0.8101]
[1729777217676,3.94776,2533.1,2532.8,0.55]
[1729777218278,3.94758,2533.2,2532.8,0.55]
[1729777218778,3.94774,2533.1,2532.8,0.55]
[1729777219161,3.94751,2533.3,2532.8,0.55]
[1729777219379,3.94759,2533.2,2532.8,0.55]
[1729777219577,3.94757,2533.2,2532.8,0.55]
[1729777219776,3.94776,2533.1,2532.8,0.55]
[1729777220059,3.94757,2533.2,2532.8,0.55]
[1729777221286,3.94734,2533.4,2532.8,5.84701396]
[1729777221599,3.94748,2533.3,2532.8,1.81993763]
[1729777221803,3.94758,2533.2,2532.8,0.55]
[1729777222109,3.94758,2533.2,2532.9,0.05324443]
[1729777222458,3.94736,2533.4,2532.9,0.05324443]
[1729777222667,3.94757,2533.2,2532.9,0.05324443]
[1729777223575,7.89525,2533.2,2532.9,0.05324443]
[1729777223788,3.94757,2533.2,2532.9,0.05324443]
[1729777224093,3.94773,2533.1,2532.9,0.05324443]
[1729777224900,3.94788,2533.0,2532.7,0.8101]
[1729777225104,3.94804,2532.9,2532.8,0.05337319]
[1729777225306,3.94804,2532.9,2532.5,0.7712]
[1729777225502,3.94789,2533.0,2532.6,0.05362351]
[1729777227732,3.94835,2532.7,2532.6,0.05362351]
[1729777227940,4.75409,2532.8,2532.2,0.8148]
[1729777228086,3.94912,2532.3,2531.9,0.8148]
[1729777228591,3.94913,2532.2,2531.9,0.8148]
[1729777229024,7.89836,2532.2,2531.9,0.8148]
[1729777229205,3.94913,2532.2,2531.9,0.8148]
[1729777229731,3.94908,2532.3,2531.9,0.8148]
[1729777230292,3.94893,2532.4,2531.9,0.8148]
[1729777230529,3.94926,2532.2,2531.9,0.8148]
[1729777230835,3.94941,2532.1,2531.6,4.0343818]
[1729777231134,3.94922,2532.2,2531.6,4.0343818]
[1729777231548,3.94821,2532.8,2531.6,4.0343818]
[1729777231549,3.94863,2532.6,2532.0,3.94934]
[1729777231847,3.94863,2532.6,2532.1,0.55356143]
[1729777232138,3.94837,2532.7,2532.1,4.50269143]
[1729777232439,3.94835,2532.7,2532.2,4.49912]
[1729777232604,3.9483,2532.8,2532.3,0.777]
[1729777232806,3.94829,2532.8,2532.3,0.85597472]
[1729777233146,3.94829,2532.8,2532.4,0.55]
[1729777233301,3.94805,2532.9,2532.4,4.49881]
[1729777233499,0.8061,2533.2,2532.4,4.49881]
[1729777233500,4.75378,2533.2,2532.4,4.49871]
[1729777233713,4.75378,2533.2,2532.8,0.7853]
[1729777233714,3.94778,2533.1,2532.8,0.7853]
[1729777234127,3.9479,2533.0,2532.8,0.7853]
[1729777234542,3.9479,2533.0,2532.9,0.08613749]
[1729777234832,3.94768,2533.2,2532.9,0.08613749]
[1729777235004,3.94788,2533.0,2532.9,0.08613749]
[1729777236336,3.94819,2532.9,2532.5,0.8173]
[1729777236632,3.94835,2532.7,2532.5,0.8173]
[1729777236935,3.94819,2532.9,2532.6,0.08482404]
[1729777237096,7.89637,2532.9,2532.6,0.08482404]
[1729777237605,3.94818,2532.9,2532.6,0.08482404]
[1729777238003,3.94813,2532.9,2532.6,0.08482404]
[1729777238203,3.94828,2532.8,2532.6,0.08482404]
[1729777238636,3.94835,2532.7,2532.6,0.08482404]
[1729777238937,3.94869,2532.5,2532.2,0.8074]
[1729777240203,3.94853,2532.6,2532.2,0.8074]
[1729777240414,3.94851,2532.6,2532.2,0.8074]
[1729777241215,3.94871,2532.5,2532.2,0.8074]
[1729777242205,3.94871,2532.5,2532.0,1.39757792]
[1729777242404,3.94871,2532.5,2532.0,5.34699792]
[1729777242613,3.94885,2532.4,2532.0,1.3186]
[1729777242797,3.94885,2532.4,2532.0,0.7686]
[1729777242798,3.94924,2532.2,2532.0,0.7686]
[1729777243002,1.540456,2532.4,2531.8,0.7755]
[1729777243230,1.540456,2532.4,2531.6,4.0343818]
[1729777243231,3.9497,2531.9,2531.6,4.0343818]
[1729777243432,3.94913,2532.2,2531.7,0.02]
[1729777243633,3.94944,2532.0,2531.7,0.02]
[1729777243834,3.94967,2531.9,2531.7,0.02]
[1729777244009,7.89942,2531.9,2531.7,0.02]
[1729777244214,3.94929,2532.1,2531.4,4.07]
[1729777244526,3.94978,2531.8,2531.3,4.84526075]
[1729777245022,3.94978,2531.8,2531.3,0.89480075]
[1729777246340,3.95,2531.7,2531.3,0.89480075]
[1729777246538,7.90001,2531.7,2531.3,0.89480075]
[1729777246745,3.95,2531.7,2531.3,0.8158]
[1729777246945,3.95,2531.7,2531.3,2.10314076]
[1729777247238,3.94977,2531.8,2531.3,2.10314076]
[1729777247734,3.94972,2531.9,2531.3,2.10314076]
[1729777247735,3.94991,2531.7,2531.3,2.18214363]
[1729777248149,0.7735,2532.0,2531.3,0.8158]
[1729777248150,3.95029,2531.5,2531.3,0.8158]
[1729777248445,3.95029,2531.5,2530.3,0.8191]
[1729777248446,3.95136,2530.8,2530.3,0.8191]
[1729777248605,3.95136,2530.8,2530.4,0.02]
[1729777249135,3.95126,2530.9,2530.4,0.499127]
[1729777249910,3.95134,2530.8,2530.4,0.499127]
[1729777250124,3.95158,2530.7,2530.4,0.02]
[1729777250359,3.95158,2530.7,2530.3,0.8191]
[1729777250515,3.95134,2530.8,2530.3,0.8191]
[1729777251125,3.95177,2530.6,2530.3,0.8191]
[1729777251463,3.95147,2530.7,2530.3,0.8191]
[1729777251658,7.90306,2530.7,2530.3,0.8191]
[1729777251819,3.95147,2530.7,2530.3,0.8191]
[1729777252153,3.95147,2530.7,2530.4,0.08833507]
[1729777254547,3.9512,2530.9,2530.5,0.55]
[1729777254734,3.9512,2530.9,2530.5,0.63820831]
[1729777255522,3.95114,2531.0,2530.5,0.63820831]
[1729777255730,3.95092,2531.1,2530.5,4.58996831]
[1729777255928,3.95092,2531.1,2530.6,0.91068745]
[1729777256459,3.9513,2530.9,2530.7,0.08860407]
[1729777257128,3.9513,2530.9,2530.8,0.08847735]
[1729777257729,3.9513,2530.9,2530.5,0.55]
[1729777257930,3.9513,2530.9,2530.6,0.08873081]
[1729777258328,0.7946,2531.2,2530.6,0.08873081]
[1729777258532,3.95063,2531.3,2530.6,0.08873081]
[1729777258533,3.95039,2531.4,2530.9,0.55]
[1729777258967,0.8303,2531.5,2531.0,0.08829612]
[1729777259134,3.95016,2531.6,2531.1,0.822]
[1729777259541,3.95016,2531.6,2531.2,0.08800304]
[1729777259542,3.95053,2531.3,2531.2,0.08800304]
[1729777259986,3.94939,2532.1,2531.3,1.3303]
[1729777260205,3.94967,2531.9,2531.5,0.55]
[1729777260533,3.94929,2532.1,2531.6,0.08749642]
[1729777260773,4.70443,2532.2,2531.6,0.08749642]
[1729777260774,3.94957,2532.0,2531.6,0.08749642]
[1729777260995,3.9497,2531.9,2531.6,0.08749642]
[1729777261130,3.94954,2532.0,2531.6,0.08749642]
[1729777261329,3.94987,2531.8,2531.6,0.08749642]
[1729777261573,3.94987,2531.8,2531.4,0.43421121]
[1729777261875,3.94987,2531.8,2531.5,0.90412718]
[1729777262182,3.94929,2532.1,2531.6,4.50005]
[1729777262375,3.94946,2532.0,2531.7,0.7692]
[1729777262673,3.94975,2531.8,2531.7,0.85656979]
[1729777263042,3.94959,2532.0,2531.7,0.85656979]
[1729777263375,3.94929,2532.1,2531.7,0.85656979]
[1729777263871,3.94904,2532.3,2531.8,0.48855559]
[1729777264074,3.94904,2532.3,2531.8,4.43824559]
[1729777264371,4.73967,2532.5,2531.8,4.43824559]
[1729777264372,3.9489,2532.4,2531.9,6.96047565]
[1729777264552,3.949,2532.3,2531.9,0.08711655]
[1729777264752,3.94926,2532.2,2531.9,0.08711655]
[1729777265396,3.94939,2532.1,2531.9,0.08711655]
[1729777265581,3.94939,2532.1,2531.7,0.7692]
[1729777265784,3.94939,2532.1,2531.8,0.08687519]
[1729777266097,3.94939,2532.1,2531.7,0.7692]
[1729777266294,3.94929,2532.1,2531.9,0.08674858]
[1729777266597,3.94929,2532.1,2532.0,0.08662198]
[1729777266902,3.94921,2532.2,2531.8,3.94975]
[1729777267072,3.94892,2532.4,2531.7,5.96761241]
[1729777267073,7.89789,2532.4,2532.0,0.08662198]
[1729777267267,3.9491,2532.3,2531.9,0.08674858]
[1729777267492,3.94924,2532.2,2532.1,0.08649539]
[1729777267657,3.94924,2532.2,2531.7,12.84123151]
[1729777267658,3.94924,2532.2,2532.0,0.08662198]
[1729777267857,3.94899,2532.3,2532.1,0.08649539]
[1729777268054,3.94913,2532.2,2532.1,0.08649539]
[1729777268296,3.94913,2532.2,2531.8,3.94974]
[1729777268493,3.949,2532.3,2532.1,0.08364768]
[1729777268697,3.949,2532.3,2531.8,5.53385515]
[1729777268901,3.94914,2532.2,2531.8,5.53385515]
[1729777269200,0.7534,2533.2,2532.1,0.825]
[1729777269419,0.7534,2533.2,2532.4,6.8726091]
[1729777269420,3.94812,2532.9,2532.4,6.8726091]
[1729777269697,3.94821,2532.8,2532.4,2.9238091]
[1729777270199,3.94836,2532.7,2532.3,0.55]
[1729777270963,3.94836,2532.7,2532.3,4.49897]
[1729777271165,0.78961,2532.9,2532.3,4.49897]
[1729777271478,3.94842,2532.7,2532.3,4.49897]
[1729777272501,3.94835,2532.7,2532.3,4.49897]
[1729777272717,3.94814,2532.9,2532.3,4.49897]
[1729777272914,3.94814,2532.9,2532.3,4.49886]
[1729777273209,3.94819,2532.8,2532.3,4.49886]
[1729777274017,3.94837,2532.7,2532.3,4.49886]
[1729777275683,3.9478,2533.1,2532.6,3.94839]
[1729777275884,3.0,2533.6,2532.6,4.49841]
[1729777275885,0.7718,2533.5,2532.6,4.49841]
[1729777276082,3.9478,2533.1,2532.7,3.94834]
[1729777276985,3.9478,2533.1,2532.6,4.49843]
[1729777277423,7.896,2533.0,2532.6,0.55]
[1729777277793,3.94799,2533.0,2532.6,0.55]
[1729777278001,3.94799,2533.0,2532.6,4.4985]
[1729777278196,3.94835,2532.7,2532.5,3.0]
[1729777278535,3.9482,2532.8,2532.4,0.789]
[1729777278690,3.9482,2532.8,2532.4,4.73775]
[1729777279292,3.94854,2532.6,2532.4,0.789]
[1729777279611,3.94854,2532.6,2532.2,3.94912]
[1729777279612,3.94875,2532.5,2532.2,3.8113]
[1729777279793,3.94848,2532.7,2532.2,3.8113]
[1729777279983,3.94816,2532.9,2532.3,3.94886]
[1729777280190,3.94819,2532.8,2532.3,3.94886]
[1729777280634,3.94814,2532.9,2532.4,6.8726291]
[1729777280922,0.7887,2533.0,2532.2,7.76033]
[1729777281137,3.94842,2532.7,2532.3,0.55]
[1729777281488,3.94832,2532.8,2532.3,0.55]
[1729777281728,3.94831,2532.8,2532.3,0.55]
[1729777282037,3.94842,2532.7,2532.3,0.55]
[1729777282330,3.94842,2532.7,2532.4,0.08230299]
[1729777283126,3.9482,2532.8,2532.4,0.08230299]
[1729777283425,3.9482,2532.8,2532.4,4.03110299]
[1729777283934,3.9482,2532.8,2532.4,0.08230299]
[1729777284125,3.94842,2532.7,2532.4,0.08230299]
[1729777284491,3.94802,2533.0,2532.6,3.94851]
[1729777284692,0.815,2533.3,2532.9,0.55]
[1729777284693,3.9475,2533.3,2532.9,0.55]
[1729777284898,3.9475,2533.3,2532.9,0.7589]
[1729777285203,0.7611,2533.6,2532.9,0.7589]
[1729777285204,3.94737,2533.4,2533.0,0.08155461]
[1729777285722,3.94752,2533.3,2533.0,0.08155461]
[1729777285915,3.94737,2533.4,2533.0,0.08155461]
[1729777286328,3.94757,2533.3,2533.0,0.08155461]
[1729777286493,3.89757,2533.3,2533.0,0.08155461]
[1729777287201,7.84509,2533.3,2533.0,0.56040707]
[1729777287406,3.89757,2533.3,2533.0,0.08155461]
[1729777287602,3.94758,2533.2,2533.0,0.08155461]
[1729777287802,3.9474,2533.4,2533.0,0.08155461]
[1729777288434,3.94749,2533.3,2533.0,0.08155461]
[1729777289097,0.7611,2533.6,2533.0,0.08155461]
[1729777289297,0.1253397,2533.9,2533.3,3.4738091]
[1729777289637,0.1253397,2533.9,2533.8,5.32864]
[1729777289939,0.0753397,2533.9,2533.8,0.90960263]
[1729777290091,4.0218197,2533.9,2533.8,0.07760263]
[1729777290295,4.0218197,2533.9,2533.5,0.799]
[1729777290619,4.0218197,2533.9,2533.5,1.86599991]
[1729777290797,4.0218297,2533.9,2533.5,4.78980901]
[1729777290998,4.0218297,2533.9,2533.6,0.07766155]
[1729777291230,0.0753397,2533.9,2533.6,0.07766155]
[1729777291432,0.0753397,2533.9,2533.7,0.55]
[1729777291591,0.0753397,2533.9,2533.8,0.0774087]
[1729777292423,4.0218197,2533.9,2533.8,0.0774087]
[1729777292737,4.0218197,2533.9,2533.5,1.86599991]
[1729777292890,3.94667,2533.8,2533.5,0.799]
[1729777293324,0.0753397,2533.9,2533.5,3.7228091]
[1729777293629,0.0753397,2533.9,2533.6,0.38017462]
[1729777293811,4.0218997,2533.9,2533.6,0.38017462]
[1729777294135,3.94667,2533.8,2533.5,0.799]
[1729777294835,4.0218997,2533.9,2533.2,0.7849]
[1729777295042,3.94711,2533.5,2533.2,0.7849]
[1729777295834,3.94689,2533.7,2533.2,0.7849]
[1729777296142,3.94699,2533.6,2533.3,0.76563591]
[1729777296366,3.94699,2533.6,2533.3,0.55]
[1729777296634,3.94689,2533.7,2533.3,0.55]
[1729777296939,3.94665,2533.8,2533.3,0.55]
[1729777297236,0.0753397,2533.9,2533.6,0.8058]
[1729777297737,4.0218297,2533.9,2533.7,0.07706107]
[1729777298440,0.0753397,2533.9,2533.7,0.07706107]
[1729777298609,0.0753397,2533.9,2533.7,0.62294349]
[1729777298810,0.0753397,2533.9,2533.7,0.07706107]
[1729777302043,4.0218497,2533.9,2533.7,0.07706107]
[1729777302228,3.94664,2533.8,2533.7,0.07706107]